[Event "*** Titled Tuesday Blitz"]
[Site "Chess.com"]
[Date "2018.05.01"]
[Round "2"]
[White "LoydBlankenship"]
[Black "Keaton87"]
[Result "0-1"]
[WhiteElo "2368"]
[BlackElo "2446"]
[TimeControl "180+2"]
[EndTime "13:20:16 PDT"]
[Termination "Keaton87 won by resignation"]

1. e4 {[%clk 0:03:01.7]} 1... c5 {[%clk 0:03:00.6]} 2. Nf3 {[%clk 0:03:02.1]}
2... d6 {[%clk 0:03:01.4]} 3. d4 {[%clk 0:03:02.2]} 3... Nf6 {[%clk 0:03:02.8]}
4. Nc3 {[%clk 0:03:02.8]} 4... cxd4 {[%clk 0:03:04.2]} 5. Nxd4 {[%clk
0:03:04.4]} 5... g6 {[%clk 0:03:05.6]} 6. Be3 {[%clk 0:03:03]} 6... Bg7 {[%clk
0:03:06.9]} 7. f3 {[%clk 0:03:04.5]} 7... O-O {[%clk 0:03:08.2]} 8. Bc4 {[%clk
0:03:05.6]} 8... Nc6 {[%clk 0:03:09.5]} 9. Qd2 {[%clk 0:03:06.9]} 9... Bd7
{[%clk 0:03:11]} 10. Bb3 {[%clk 0:03:08.4]} 10... Rc8 {[%clk 0:03:12.4]} 11. O-O
{[%clk 0:03:08.7]} 11... Nxd4 {[%clk 0:03:02.6]} 12. Bxd4 {[%clk 0:03:07.6]}
12... Qa5 {[%clk 0:03:04.1]} 13. Rfd1 {[%clk 0:03:05.3]} 13... Rfe8 {[%clk
0:02:59]} 14. Kh1 {[%clk 0:02:57.9]} 14... Be6 {[%clk 0:02:57.1]} 15. Bxf6
{[%clk 0:02:58.1]} 15... Bxf6 {[%clk 0:02:57.4]} 16. Nd5 {[%clk 0:02:59.6]}
16... Qxd2 {[%clk 0:02:57.6]} 17. Nxf6+ {[%clk 0:03:00.6]} 17... exf6 {[%clk
0:02:49.9]} 18. Rxd2 {[%clk 0:03:00.6]} 18... Bxb3 {[%clk 0:02:44.5]} 19. axb3
{[%clk 0:03:01.1]} 19... a6 {[%clk 0:02:45.6]} 20. c3 {[%clk 0:03:01.4]} 20...
Rc6 {[%clk 0:02:45.4]} 21. Rad1 {[%clk 0:03:01.7]} 21... Re6 {[%clk 0:02:45.6]}
22. Kg1 {[%clk 0:03:02.1]} 22... Kf8 {[%clk 0:02:46.7]} 23. Rd5 {[%clk
0:03:01.8]} 23... Ke7 {[%clk 0:02:47.9]} 24. b4 {[%clk 0:03:00.7]} 24... Re5
{[%clk 0:02:47.1]} 25. Kf2 {[%clk 0:03:01]} 25... Rxd5 {[%clk 0:02:48.2]} 26.
exd5 {[%clk 0:02:59.9]} 26... Rc8 {[%clk 0:02:46.1]} 27. Ke3 {[%clk 0:02:47.1]}
27... Kd7 {[%clk 0:02:47]} 28. Kd3 {[%clk 0:02:47]} 28... Re8 {[%clk 0:02:47.4]}
29. c4 {[%clk 0:02:48.4]} 29... Re5 {[%clk 0:02:45.9]} 30. g3 {[%clk 0:02:47.1]}
30... f5 {[%clk 0:02:39]} 31. b3 {[%clk 0:02:46.5]} 31... g5 {[%clk 0:02:28.7]}
32. h3 {[%clk 0:02:40.8]} 32... f4 {[%clk 0:02:26.4]} 33. gxf4 {[%clk
0:02:40.5]} 33... gxf4 {[%clk 0:02:27.3]} 34. Kc3 {[%clk 0:02:37.7]} 34... Rh5
{[%clk 0:02:14]} 35. Rd4 {[%clk 0:02:36.1]} 35... Rxh3 {[%clk 0:02:14.9]} 36.
Rxf4 {[%clk 0:02:36.7]} 36... Ke7 {[%clk 0:02:16.2]} 37. c5 {[%clk 0:02:37.2]}
37... Rh1 {[%clk 0:02:14.9]} 38. cxd6+ {[%clk 0:02:19.9]} 38... Kxd6 {[%clk
0:02:15.3]} 39. Rxf7 {[%clk 0:02:21.3]} 39... b5 {[%clk 0:02:09.6]} 40. Rf6+
{[%clk 0:02:17.8]} 40... Kxd5 {[%clk 0:02:09.4]} 41. Rxa6 {[%clk 0:02:19.4]}
41... Rh3 {[%clk 0:02:04.7]} 42. Rf6 {[%clk 0:02:14.8]} 42... h5 {[%clk
0:02:00.4]} 43. Kd3 {[%clk 0:02:14.8]} 43... h4 {[%clk 0:02:00.8]} 44. Rf5+
{[%clk 0:02:11.1]} 44... Kc6 {[%clk 0:02:00.1]} 45. Ke4 {[%clk 0:02:11.4]} 45...
Rh1 {[%clk 0:01:59.6]} 46. Rf6+ {[%clk 0:02:12.1]} 46... Kc7 {[%clk 0:01:51.8]}
47. Kd5 {[%clk 0:02:12.2]} 47... h3 {[%clk 0:01:44.2]} 48. Rf7+ {[%clk
0:02:08.3]} 48... Kd8 {[%clk 0:01:41.6]} 49. Rh7 {[%clk 0:01:37.4]} 49... h2
{[%clk 0:01:25.6]} 50. Kc5 {[%clk 0:01:38.3]} 50... Rc1+ {[%clk 0:01:25.5]} 51.
Kxb5 {[%clk 0:01:35.1]} 51... h1=Q {[%clk 0:01:25.4]} 52. Rxh1 {[%clk
0:01:34.1]} 52... Rxh1 {[%clk 0:01:27.3]} 53. Kb6 {[%clk 0:01:33]} 53... Kc8
{[%clk 0:01:27.4]} 54. b5 {[%clk 0:01:34.3]} 54... Kb8 {[%clk 0:01:26.4]} 55. b4
{[%clk 0:01:35.5]} 55... Rf1 {[%clk 0:01:27]} 56. Kc6 {[%clk 0:01:36]} 56...
Rxf3 {[%clk 0:01:27.8]} 57. b6 {[%clk 0:01:37.4]} 57... Rf6+ {[%clk 0:01:28.5]}
58. Kc5 {[%clk 0:01:38.6]} 58... Kb7 {[%clk 0:01:29.8]} 59. b5 {[%clk
0:01:40.5]} 59... Rf5+ {[%clk 0:01:30.5]} 60. Kd6 {[%clk 0:01:38.7]} 60... Kxb6
{[%clk 0:01:31.6]} 61. Ke6 {[%clk 0:01:38.1]} 61... Rxb5 {[%clk 0:01:33.5]} 62.
Kf6 {[%clk 0:01:38.6]} 62... Kc6 {[%clk 0:01:34.3]} 63. Ke6 {[%clk 0:01:39.7]}
63... Rd5 {[%clk 0:01:35.2]} 64. Kf6 {[%clk 0:01:41.6]} 64... Kd6 {[%clk
0:01:36.3]} 65. Kf7 {[%clk 0:01:43.1]} 65... Rf5+ {[%clk 0:01:37]} 66. Kg6
{[%clk 0:01:45]} 66... Ke6 {[%clk 0:01:37.8]} 67. Kh6 {[%clk 0:01:46.9]} 67...
Kf7 {[%clk 0:01:38.6]} 0-1

[Event "*** Titled Tuesday Blitz"]
[Site "Chess.com"]
[Date "2018.05.01"]
[Round "2"]
[White "tomsishere"]
[Black "Frolik67"]
[Result "1-0"]
[WhiteElo "2378"]
[BlackElo "2436"]
[TimeControl "180+2"]
[EndTime "13:20:18 PDT"]
[Termination "tomsishere won by checkmate"]

1. d4 {[%clk 0:03:01.9]} 1... e6 {[%clk 0:03:00.4]} 2. c4 {[%clk 0:03:02.5]}
2... d5 {[%clk 0:03:00.5]} 3. Nc3 {[%clk 0:03:03.1]} 3... c6 {[%clk 0:03:00]} 4.
e4 {[%clk 0:03:03.5]} 4... Nf6 {[%clk 0:02:52.6]} 5. e5 {[%clk 0:02:58.5]} 5...
Nfd7 {[%clk 0:02:52.8]} 6. Nf3 {[%clk 0:02:58.3]} 6... Be7 {[%clk 0:02:53.3]} 7.
Bd3 {[%clk 0:02:54.8]} 7... b6 {[%clk 0:02:53.7]} 8. O-O {[%clk 0:02:49.5]} 8...
Bb7 {[%clk 0:02:54.4]} 9. Be3 {[%clk 0:02:47.9]} 9... a6 {[%clk 0:02:53.6]} 10.
Qe2 {[%clk 0:02:47.8]} 10... c5 {[%clk 0:02:51.9]} 11. cxd5 {[%clk 0:02:45.4]}
11... exd5 {[%clk 0:02:49.4]} 12. Rad1 {[%clk 0:02:42.4]} 12... c4 {[%clk
0:02:49.7]} 13. Bb1 {[%clk 0:02:42.4]} 13... b5 {[%clk 0:02:49]} 14. Bf4 {[%clk
0:02:36.3]} 14... b4 {[%clk 0:02:43.6]} 15. Na4 {[%clk 0:02:18.1]} 15... Bc6
{[%clk 0:02:44.3]} 16. Nc5 {[%clk 0:01:51.2]} 16... Bxc5 {[%clk 0:02:44.6]} 17.
dxc5 {[%clk 0:01:52.2]} 17... Nxc5 {[%clk 0:02:46.5]} 18. Nd4 {[%clk 0:01:50.2]}
18... Ne6 {[%clk 0:02:43.5]} 19. Nxe6 {[%clk 0:01:41.6]} 19... fxe6 {[%clk
0:02:45.4]} 20. Qh5+ {[%clk 0:01:42]} 20... Kd7 {[%clk 0:02:46.6]} 21. Qg4
{[%clk 0:01:32]} 21... Qe7 {[%clk 0:02:45.5]} 22. Bg5 {[%clk 0:01:32.4]} 22...
Qf7 {[%clk 0:02:44.1]} 23. f4 {[%clk 0:01:33.3]} 23... g6 {[%clk 0:02:45.3]} 24.
Bf6 {[%clk 0:01:23.8]} 24... Re8 {[%clk 0:02:43.8]} 25. f5 {[%clk 0:01:22.4]}
25... gxf5 {[%clk 0:02:44.1]} 26. Qxc4 {[%clk 0:01:22.9]} 26... Bb5 {[%clk
0:02:00.4]} 27. Rxd5+ {[%clk 0:01:22.3]} 27... exd5 {[%clk 0:01:58.6]} 28. Bxf5+
{[%clk 0:01:22.9]} 28... Re6 {[%clk 0:01:54]} 29. Qxd5+ {[%clk 0:01:21.9]} 29...
Kc7 {[%clk 0:01:54.7]} 30. Bxe6 {[%clk 0:01:13.4]} 30... Qe8 {[%clk 0:01:51.5]}
31. Rc1+ {[%clk 0:00:42]} 31... Nc6 {[%clk 0:01:51.6]} 32. Qd6+ {[%clk
0:00:42.9]} 32... Kb6 {[%clk 0:01:51.1]} 33. Bd5 {[%clk 0:00:41.4]} 33... Rc8
{[%clk 0:01:48.6]} 34. e6 {[%clk 0:00:32.9]} 34... Ka5 {[%clk 0:01:35.9]} 35. a3
{[%clk 0:00:27.2]} 35... bxa3 {[%clk 0:01:25.7]} 36. bxa3 {[%clk 0:00:23.3]}
36... Qg6 {[%clk 0:01:09.3]} 37. Bc3+ {[%clk 0:00:20.5]} 37... Kb6 {[%clk
0:01:10.7]} 38. Bd4+ {[%clk 0:00:18.6]} 38... Kb7 {[%clk 0:01:12.2]} 39. Rxc6
{[%clk 0:00:14.4]} 39... Bxc6 {[%clk 0:01:12.4]} 40. Qd7+ {[%clk 0:00:14.9]}
40... Rc7 {[%clk 0:01:12.5]} 41. Bxc6+ {[%clk 0:00:15.9]} 41... Kb8 {[%clk
0:01:14.1]} 42. Qd8+ {[%clk 0:00:16.5]} 42... Rc8 {[%clk 0:01:15.6]} 43. Qb6#
{[%clk 0:00:17.3]} 1-0

[Event "*** Titled Tuesday Blitz"]
[Site "Chess.com"]
[Date "2018.05.01"]
[Round "2"]
[White "Hrant_ChessMood"]
[Black "Federtiu"]
[Result "1-0"]
[WhiteElo "2836"]
[BlackElo "2522"]
[TimeControl "180+2"]
[EndTime "13:20:19 PDT"]
[Termination "Hrant_ChessMood won by resignation"]

1. d4 {[%clk 0:01:59.1]} 1... g6 {[%clk 0:03:00.1]} 2. Nf3 {[%clk 0:02:00]} 2...
Bg7 {[%clk 0:02:56.6]} 3. g3 {[%clk 0:01:59.7]} 3... Nf6 {[%clk 0:02:56.8]} 4.
Bg2 {[%clk 0:01:56.3]} 4... O-O {[%clk 0:02:47.5]} 5. O-O {[%clk 0:01:57]} 5...
d6 {[%clk 0:02:39.8]} 6. b3 {[%clk 0:01:57.4]} 6... a5 {[%clk 0:02:40.3]} 7. Nc3
{[%clk 0:01:54.7]} 7... d5 {[%clk 0:02:35.2]} 8. Bf4 {[%clk 0:01:54.5]} 8... c6
{[%clk 0:02:30.6]} 9. a3 {[%clk 0:01:44.6]} 9... Re8 {[%clk 0:02:28.5]} 10. h3
{[%clk 0:01:38]} 10... Bf5 {[%clk 0:02:20.3]} 11. g4 {[%clk 0:01:37.2]} 11...
Be4 {[%clk 0:02:20]} 12. Nxe4 {[%clk 0:01:36.1]} 12... Nxe4 {[%clk 0:02:16.6]}
13. e3 {[%clk 0:01:28.3]} 13... Nd7 {[%clk 0:02:17.2]} 14. c4 {[%clk 0:01:21.6]}
14... e6 {[%clk 0:01:58.8]} 15. Qc2 {[%clk 0:01:17.2]} 15... f5 {[%clk 0:01:56]}
16. Rab1 {[%clk 0:01:12.5]} 16... fxg4 {[%clk 0:01:51.9]} 17. hxg4 {[%clk
0:01:13.1]} 17... Qf6 {[%clk 0:01:51.3]} 18. Ne5 {[%clk 0:01:10.6]} 18... Nxe5
{[%clk 0:01:48.3]} 19. Bxe5 {[%clk 0:01:11.1]} 19... Qe7 {[%clk 0:01:36.5]} 20.
Bxg7 {[%clk 0:01:07.2]} 20... Kxg7 {[%clk 0:01:38.4]} 21. Bxe4 {[%clk
0:01:08.4]} 21... dxe4 {[%clk 0:01:40.3]} 22. Qxe4 {[%clk 0:01:09.1]} 22... Qxa3
{[%clk 0:01:41.9]} 23. Qe5+ {[%clk 0:00:58.4]} 23... Kg8 {[%clk 0:01:42.2]} 24.
c5 {[%clk 0:01:00.3]} 24... Re7 {[%clk 0:01:36.1]} 25. Kg2 {[%clk 0:01:00.5]}
25... a4 {[%clk 0:01:31.9]} 26. bxa4 {[%clk 0:00:59.4]} 26... Qxa4 {[%clk
0:01:33.8]} 27. Ra1 {[%clk 0:00:46.5]} 27... Qxa1 {[%clk 0:01:34.3]} 28. Rxa1
{[%clk 0:00:48.4]} 28... Rxa1 {[%clk 0:01:35.7]} 29. d5 {[%clk 0:00:47]} 29...
Ra8 {[%clk 0:01:20.3]} 30. d6 {[%clk 0:00:47.8]} 30... Ree8 {[%clk 0:01:21.4]}
31. d7 {[%clk 0:00:35.7]} 31... Rf8 {[%clk 0:00:57.5]} 32. Qxe6+ {[%clk
0:00:36.7]} 32... Kh8 {[%clk 0:00:59.1]} 33. Qe7 {[%clk 0:00:31.8]} 33... Rad8
{[%clk 0:00:59.2]} 34. e4 {[%clk 0:00:32.1]} 34... b5 {[%clk 0:00:56.4]} 35.
cxb6 {[%clk 0:00:32.2]} 35... c5 {[%clk 0:00:58.3]} 36. e5 {[%clk 0:00:30.7]}
36... c4 {[%clk 0:00:59.3]} 37. e6 {[%clk 0:00:32.1]} 37... c3 {[%clk
0:01:00.7]} 38. Qxf8+ {[%clk 0:00:29.7]} 38... Rxf8 {[%clk 0:01:01.5]} 39. e7
{[%clk 0:00:31.6]} 1-0

[Event "*** Titled Tuesday Blitz"]
[Site "Chess.com"]
[Date "2018.05.01"]
[Round "2"]
[White "michaelq2d5"]
[Black "Supernotar"]
[Result "1-0"]
[WhiteElo "2691"]
[BlackElo "2490"]
[TimeControl "180+2"]
[EndTime "13:20:19 PDT"]
[Termination "michaelq2d5 won by checkmate"]

1. d4 {[%clk 0:03:01.9]} 1... d5 {[%clk 0:02:56.8]} 2. c4 {[%clk 0:03:03.2]}
2... dxc4 {[%clk 0:02:57.4]} 3. Nf3 {[%clk 0:03:03.3]} 3... Nf6 {[%clk
0:02:58.1]} 4. Qa4+ {[%clk 0:03:04.4]} 4... c6 {[%clk 0:02:57.9]} 5. Qxc4 {[%clk
0:03:05.5]} 5... b5 {[%clk 0:02:58.7]} 6. Qc2 {[%clk 0:03:05.9]} 6... Bb7 {[%clk
0:02:59.3]} 7. g3 {[%clk 0:03:06.6]} 7... e6 {[%clk 0:02:59.4]} 8. Bg2 {[%clk
0:03:07.8]} 8... Nbd7 {[%clk 0:03:00.2]} 9. O-O {[%clk 0:03:08.2]} 9... c5
{[%clk 0:03:01.2]} 10. a4 {[%clk 0:03:08.4]} 10... b4 {[%clk 0:03:01.3]} 11. Rd1
{[%clk 0:02:39.3]} 11... Rc8 {[%clk 0:02:58.6]} 12. Qd3 {[%clk 0:02:19.5]} 12...
c4 {[%clk 0:02:51.5]} 13. Qd2 {[%clk 0:02:16.6]} 13... Be7 {[%clk 0:02:46.2]}
14. h3 {[%clk 0:02:07.4]} 14... c3 {[%clk 0:02:41.5]} 15. bxc3 {[%clk 0:02:07]}
15... bxc3 {[%clk 0:02:42.1]} 16. Nxc3 {[%clk 0:01:47.5]} 16... Bb4 {[%clk
0:02:42.2]} 17. Bb2 {[%clk 0:01:47.7]} 17... Ne4 {[%clk 0:02:41.8]} 18. Nxe4
{[%clk 0:01:45.7]} 18... Bxd2 {[%clk 0:02:42.8]} 19. Nd6+ {[%clk 0:01:46.7]}
19... Kf8 {[%clk 0:02:39]} 20. Ba3 {[%clk 0:01:46.8]} 20... Kg8 {[%clk
0:02:28.8]} 21. Nxb7 {[%clk 0:01:40]} 21... Qc7 {[%clk 0:02:26.8]} 22. Nd6
{[%clk 0:01:39.9]} 22... Ba5 {[%clk 0:02:14.5]} 23. Rac1 {[%clk 0:01:38.5]}
23... Qxc1 {[%clk 0:02:08]} 24. Rxc1 {[%clk 0:01:36.2]} 24... Rxc1+ {[%clk
0:02:08.7]} 25. Bxc1 {[%clk 0:01:38.1]} 25... h6 {[%clk 0:02:02.5]} 26. Ne5
{[%clk 0:01:23.1]} 26... Nxe5 {[%clk 0:01:59.4]} 27. dxe5 {[%clk 0:01:25]} 27...
g5 {[%clk 0:01:58.4]} 28. Be3 {[%clk 0:01:23.8]} 28... Bc3 {[%clk 0:01:51.2]}
29. f4 {[%clk 0:01:19.6]} 29... gxf4 {[%clk 0:01:50.4]} 30. gxf4 {[%clk
0:01:20.7]} 30... a5 {[%clk 0:01:50.6]} 31. Bf3 {[%clk 0:01:13.3]} 31... Kg7
{[%clk 0:01:46.6]} 32. Bh5 {[%clk 0:01:11.6]} 32... f6 {[%clk 0:01:43.2]} 33.
Ne4 {[%clk 0:01:10.3]} 33... Rc8 {[%clk 0:01:26.2]} 34. Nxc3 {[%clk 0:01:06.1]}
34... Rxc3 {[%clk 0:01:26.7]} 35. exf6+ {[%clk 0:01:07.6]} 35... Kg8 {[%clk
0:01:22.3]} 36. f7+ {[%clk 0:01:07.3]} 36... Kf8 {[%clk 0:01:22]} 37. Kf2 {[%clk
0:01:08.7]} 37... Rc4 {[%clk 0:01:19.8]} 38. Kf3 {[%clk 0:01:07.2]} 38... Ke7
{[%clk 0:01:13.2]} 39. Bb6 {[%clk 0:01:06.4]} 39... Kf8 {[%clk 0:01:02.6]} 40.
e3 {[%clk 0:01:05.6]} 40... Ke7 {[%clk 0:01:01.3]} 41. Ke2 {[%clk 0:00:59.7]}
41... Kf8 {[%clk 0:00:58.1]} 42. Kd3 {[%clk 0:01:00.8]} 42... Rc6 {[%clk
0:00:54]} 43. Bxa5 {[%clk 0:01:01.5]} 43... Rd6+ {[%clk 0:00:53.4]} 44. Ke4
{[%clk 0:01:02.4]} 44... Rd5 {[%clk 0:00:54.6]} 45. Bb4+ {[%clk 0:01:03.3]}
45... Kg7 {[%clk 0:00:56]} 46. f8=Q+ {[%clk 0:01:04.2]} 46... Kh7 {[%clk
0:00:57.3]} 47. Bc3 {[%clk 0:01:02]} 47... Rd7 {[%clk 0:00:55.5]} 48. Qh8#
{[%clk 0:01:02]} 1-0

[Event "*** Titled Tuesday Blitz"]
[Site "Chess.com"]
[Date "2018.05.01"]
[Round "2"]
[White "LisikValera"]
[Black "lucasmito"]
[Result "1-0"]
[WhiteElo "2431"]
[BlackElo "2343"]
[TimeControl "180+2"]
[EndTime "13:20:19 PDT"]
[Termination "LisikValera won by resignation"]

1. d4 {[%clk 0:03:01.9]} 1... Nf6 {[%clk 0:02:59.5]} 2. Nf3 {[%clk 0:03:00.9]}
2... d5 {[%clk 0:02:59.5]} 3. Bf4 {[%clk 0:03:01]} 3... e6 {[%clk 0:02:59.2]} 4.
e3 {[%clk 0:03:01.5]} 4... Bd6 {[%clk 0:02:52.1]} 5. Bg3 {[%clk 0:03:01.7]} 5...
O-O {[%clk 0:02:52.5]} 6. Nbd2 {[%clk 0:03:01.7]} 6... c5 {[%clk 0:02:52.7]} 7.
c3 {[%clk 0:03:02.6]} 7... Nc6 {[%clk 0:02:53.3]} 8. Bd3 {[%clk 0:03:03]} 8...
Re8 {[%clk 0:02:49.2]} 9. Ne5 {[%clk 0:03:02.6]} 9... Bxe5 {[%clk 0:02:50.7]}
10. dxe5 {[%clk 0:03:03.5]} 10... Nd7 {[%clk 0:02:52.3]} 11. f4 {[%clk
0:03:04.4]} 11... c4 {[%clk 0:02:51.4]} 12. Bc2 {[%clk 0:02:22.7]} 12... Qb6
{[%clk 0:02:51]} 13. Rb1 {[%clk 0:02:19.1]} 13... Qxe3+ {[%clk 0:02:50.1]} 14.
Qe2 {[%clk 0:02:20.5]} 14... Qxe2+ {[%clk 0:02:48.8]} 15. Kxe2 {[%clk
0:02:22.4]} 15... b5 {[%clk 0:02:36.4]} 16. Nf3 {[%clk 0:02:19.4]} 16... a5
{[%clk 0:02:35.3]} 17. Bf2 {[%clk 0:02:16.1]} 17... b4 {[%clk 0:02:32.1]} 18.
Ba4 {[%clk 0:02:15.1]} 18... Bb7 {[%clk 0:02:31.8]} 19. Nd4 {[%clk 0:02:14.1]}
19... Nxd4+ {[%clk 0:02:25.3]} 20. Bxd4 {[%clk 0:02:12.7]} 20... Re7 {[%clk
0:02:24.6]} 21. Bxd7 {[%clk 0:02:05]} 21... Rxd7 {[%clk 0:02:25.1]} 22. a3
{[%clk 0:02:01.1]} 22... b3 {[%clk 0:01:58.5]} 23. g4 {[%clk 0:01:58.5]} 23...
a4 {[%clk 0:01:55.9]} 24. Rhf1 {[%clk 0:01:51.7]} 24... Kf8 {[%clk 0:01:51.4]}
25. f5 {[%clk 0:01:51.2]} 25... Ke7 {[%clk 0:01:51.3]} 26. f6+ {[%clk
0:01:52.2]} 26... gxf6 {[%clk 0:01:51.8]} 27. Rxf6 {[%clk 0:01:52.9]} 27... Rg8
{[%clk 0:01:51.7]} 28. h3 {[%clk 0:01:53.6]} 28... h5 {[%clk 0:01:51.5]} 29. Kf3
{[%clk 0:01:48.1]} 29... hxg4+ {[%clk 0:01:43.1]} 30. hxg4 {[%clk 0:01:48.4]}
30... Rg6 {[%clk 0:01:44.6]} 31. Rxg6 {[%clk 0:01:47.1]} 31... fxg6 {[%clk
0:01:45.4]} 32. Rh1 {[%clk 0:01:43.6]} 32... Kf8 {[%clk 0:01:23.3]} 33. Kf4
{[%clk 0:01:44.2]} 33... Rf7+ {[%clk 0:01:08]} 34. Kg5 {[%clk 0:01:44.9]} 34...
Bc6 {[%clk 0:01:09.4]} 35. Rh8+ {[%clk 0:01:35.7]} 35... Ke7 {[%clk 0:01:09.4]}
36. Kxg6 {[%clk 0:01:33.1]} 36... Be8 {[%clk 0:01:10]} 37. Rh7 {[%clk
0:01:29.9]} 37... Rxh7+ {[%clk 0:01:04.8]} 38. Kxh7 {[%clk 0:01:30.3]} 38... Kf8
{[%clk 0:00:56.1]} 39. g5 {[%clk 0:01:26.6]} 39... Bf7 {[%clk 0:00:24.8]} 40. g6
{[%clk 0:01:24.5]} 40... Bg8+ {[%clk 0:00:26]} 41. Kh8 {[%clk 0:01:21.4]} 1-0

[Event "*** Titled Tuesday Blitz"]
[Site "Chess.com"]
[Date "2018.05.01"]
[Round "2"]
[White "bugsbunny444"]
[Black "rasmussvane"]
[Result "0-1"]
[WhiteElo "2321"]
[BlackElo "2628"]
[TimeControl "180+2"]
[EndTime "13:20:37 PDT"]
[Termination "rasmussvane won by resignation"]

1. Nf3 {[%clk 0:03:01.9]} 1... d5 {[%clk 0:03:00.6]} 2. c4 {[%clk 0:03:03.4]}
2... c6 {[%clk 0:03:01.2]} 3. g3 {[%clk 0:03:04.4]} 3... Nf6 {[%clk 0:03:02]} 4.
Bg2 {[%clk 0:03:05.8]} 4... dxc4 {[%clk 0:03:03.5]} 5. Qc2 {[%clk 0:03:06.8]}
5... b5 {[%clk 0:03:02]} 6. b3 {[%clk 0:03:07.6]} 6... cxb3 {[%clk 0:03:00.1]}
7. axb3 {[%clk 0:03:09.5]} 7... Bb7 {[%clk 0:03:00.7]} 8. Ba3 {[%clk 0:03:11.1]}
8... Nbd7 {[%clk 0:02:58.8]} 9. O-O {[%clk 0:03:09.4]} 9... a6 {[%clk
0:02:57.5]} 10. d4 {[%clk 0:03:09.7]} 10... g6 {[%clk 0:02:55.3]} 11. Nbd2
{[%clk 0:03:05.3]} 11... Rc8 {[%clk 0:02:53.5]} 12. e4 {[%clk 0:03:00.6]} 12...
Bg7 {[%clk 0:02:54.2]} 13. e5 {[%clk 0:03:01.5]} 13... Nd5 {[%clk 0:02:55.2]}
14. Ne4 {[%clk 0:02:57.9]} 14... Nc7 {[%clk 0:02:24.3]} 15. Bb4 {[%clk
0:02:29.4]} 15... O-O {[%clk 0:02:22.3]} 16. Rfd1 {[%clk 0:02:06]} 16... Ne6
{[%clk 0:02:20.6]} 17. Rac1 {[%clk 0:01:54.4]} 17... a5 {[%clk 0:02:19.6]} 18.
Ba3 {[%clk 0:01:24]} 18... b4 {[%clk 0:02:19.6]} 19. Bb2 {[%clk 0:01:25.3]}
19... Qc7 {[%clk 0:02:19.2]} 20. Nfd2 {[%clk 0:00:58.1]} 20... c5 {[%clk
0:02:18.5]} 21. d5 {[%clk 0:00:58.5]} 21... Bxd5 {[%clk 0:02:17.9]} 22. f4
{[%clk 0:00:46.9]} 22... Qa7 {[%clk 0:01:53.9]} 23. Nc4 {[%clk 0:00:38.2]} 23...
Nd4 {[%clk 0:01:52.3]} 24. Bxd4 {[%clk 0:00:33.9]} 24... cxd4 {[%clk 0:01:54.2]}
25. Qd3 {[%clk 0:00:25.6]} 25... Bxe4 {[%clk 0:01:21.1]} 26. Qxe4 {[%clk
0:00:26.4]} 26... d3+ {[%clk 0:01:19.3]} 27. Kh1 {[%clk 0:00:17]} 27... Nc5
{[%clk 0:01:20.8]} 28. Qe3 {[%clk 0:00:18.3]} 28... Qa6 {[%clk 0:01:19.4]} 29.
Nd2 {[%clk 0:00:13.3]} 29... Qb5 {[%clk 0:01:17.2]} 30. Bd5 {[%clk 0:00:08.3]}
30... Rfd8 {[%clk 0:01:16]} 31. Bc4 {[%clk 0:00:08.8]} 31... Qb7+ {[%clk
0:01:17.3]} 32. Qf3 {[%clk 0:00:08.9]} 32... Qxf3+ {[%clk 0:01:16.8]} 33. Nxf3
{[%clk 0:00:10.8]} 33... a4 {[%clk 0:01:16.6]} 34. bxa4 {[%clk 0:00:06.7]} 34...
Nxa4 {[%clk 0:01:18.5]} 35. Bb3 {[%clk 0:00:02.5]} 35... Rxc1 {[%clk 0:01:18.4]}
36. Rxc1 {[%clk 0:00:04.1]} 36... Nc3 {[%clk 0:01:19.1]} 37. Nd2 {[%clk
0:00:04.1]} 37... g5 {[%clk 0:01:16.7]} 38. Kg2 {[%clk 0:00:05.1]} 38... gxf4
{[%clk 0:01:16.6]} 39. gxf4 {[%clk 0:00:07]} 39... Bh6 {[%clk 0:01:18.1]} 40.
Kg3 {[%clk 0:00:07.6]} 40... Kf8 {[%clk 0:01:19.7]} 41. Rf1 {[%clk 0:00:08.2]}
41... Ne2+ {[%clk 0:01:19.5]} 42. Kg4 {[%clk 0:00:08.9]} 42... Rd4 {[%clk
0:01:20.2]} 43. Rf3 {[%clk 0:00:05.5]} 43... Bxf4 {[%clk 0:01:20.2]} 0-1

[Event "*** Titled Tuesday Blitz"]
[Site "Chess.com"]
[Date "2018.05.01"]
[Round "2"]
[White "GMSrinath"]
[Black "SipkeErnst"]
[Result "1-0"]
[WhiteElo "2754"]
[BlackElo "2502"]
[TimeControl "180+2"]
[EndTime "13:21:05 PDT"]
[Termination "GMSrinath won on time"]

1. e4 {[%clk 0:03:01.9]} 1... e5 {[%clk 0:02:59.3]} 2. Nf3 {[%clk 0:03:02.8]}
2... Nc6 {[%clk 0:03:00.1]} 3. Bc4 {[%clk 0:02:56.3]} 3... Bc5 {[%clk
0:02:59.7]} 4. c3 {[%clk 0:02:56.7]} 4... Nf6 {[%clk 0:02:51.7]} 5. d3 {[%clk
0:02:27.6]} 5... O-O {[%clk 0:02:44]} 6. Bg5 {[%clk 0:02:27.4]} 6... h6 {[%clk
0:02:43.7]} 7. Bh4 {[%clk 0:02:28.1]} 7... Be7 {[%clk 0:02:44.6]} 8. a4 {[%clk
0:02:29.5]} 8... d6 {[%clk 0:02:44.2]} 9. Nbd2 {[%clk 0:02:29.5]} 9... Kh8
{[%clk 0:02:44.7]} 10. O-O {[%clk 0:02:26.1]} 10... Nh5 {[%clk 0:02:33.6]} 11.
g3 {[%clk 0:02:04.3]} 11... Bg4 {[%clk 0:02:17.4]} 12. Bxe7 {[%clk 0:01:53.6]}
12... Qxe7 {[%clk 0:02:12.2]} 13. Qc2 {[%clk 0:01:51.8]} 13... g5 {[%clk
0:01:56.5]} 14. Ne1 {[%clk 0:01:41.1]} 14... Be2 {[%clk 0:01:54.3]} 15. Ng2
{[%clk 0:01:42.5]} 15... Bxf1 {[%clk 0:01:50.3]} 16. Nxf1 {[%clk 0:01:44.4]}
16... Ng7 {[%clk 0:01:35.8]} 17. g4 {[%clk 0:01:36]} 17... Qd7 {[%clk
0:01:27.8]} 18. Nfe3 {[%clk 0:01:36.7]} 18... Ne7 {[%clk 0:01:25]} 19. h4 {[%clk
0:01:35.6]} 19... c6 {[%clk 0:01:13.8]} 20. f3 {[%clk 0:01:22.1]} 20... d5
{[%clk 0:01:14.6]} 21. Bb3 {[%clk 0:01:23.6]} 21... Ne6 {[%clk 0:01:07.3]} 22.
Nf5 {[%clk 0:01:14.7]} 22... Nxf5 {[%clk 0:01:06.2]} 23. gxf5 {[%clk 0:01:14.6]}
23... Nf4 {[%clk 0:01:07.1]} 24. hxg5 {[%clk 0:01:15.3]} 24... Rg8 {[%clk
0:00:47.7]} 25. Nxf4 {[%clk 0:01:00.5]} 25... Rxg5+ {[%clk 0:00:45.3]} 26. Kf1
{[%clk 0:01:01.8]} 26... exf4 {[%clk 0:00:45.6]} 27. Qh2 {[%clk 0:01:03.3]}
27... h5 {[%clk 0:00:35.3]} 28. Qxf4 {[%clk 0:00:49]} 28... Rag8 {[%clk
0:00:35.2]} 29. Kf2 {[%clk 0:00:35.5]} 29... d4 {[%clk 0:00:36.3]} 30. Rg1
{[%clk 0:00:33.3]} 30... Qe7 {[%clk 0:00:09.4]} 31. Bxf7 {[%clk 0:00:22.6]}
31... R8g7 {[%clk 0:00:03.7]} 32. f6 {[%clk 0:00:21.6]} 32... Rxg1 {[%clk
0:00:03.7]} 33. Qh6+ {[%clk 0:00:19.2]} 33... Rh7 {[%clk 0:00:04.3]} 34. fxe7
{[%clk 0:00:20]} 1-0